fUST/lending_fUST_20250107
["ID","MTS","AMOUNT","RATE_DAILY","PERIOD"]
[347929024,1736218038988,-500.0,0.00019178,2]
[347929025,1736218039012,-500.0,0.00019178,2]
[347929026,1736218039034,-500.0,0.00019178,2]
[347929027,1736218039057,-577.65,0.00019178,2]
[347929028,1736218039080,-500.0,0.00019178,2]
[347929029,1736218039103,-510.80484159,0.00019178,2]
[347929030,1736218039127,-500.0,0.00019178,2]
[347929031,1736218039150,-500.0,0.00019178,2]
[347929032,1736218039172,-510.22441615,0.00019178,2]
[347929033,1736218039195,-500.0,0.00019178,2]
[347929034,1736218039219,-537.38,0.00019178,2]
[347929035,1736218039243,-500.0,0.00019178,2]
[347929036,1736218039265,-506.76116298,0.00019178,2]
[347929037,1736218039291,-671.38,0.00019178,2]
[347929038,1736218039315,-1810.99,0.00019178,2]
[347929039,1736218039339,-500.0,0.00019178,2]
[347929040,1736218039363,-1081.53,0.00019178,2]
[347929041,1736218039386,-509.75937068,0.00019178,2]
[347929042,1736218039409,-862.24,0.00019178,2]
[347929043,1736218039431,-507.82399068,0.00019178,2]
[347929044,1736218039455,-500.0,0.00019178,2]
[347929045,1736218039478,-505.73904284,0.00019178,2]
[347929046,1736218039500,-500.0,0.00019178,2]
[347929047,1736218039524,-500.0,0.00019178,2]
[347929048,1736218039548,-2092.96,0.00019178,2]
[347929049,1736218039570,-505.42355876,0.00019178,2]
[347929050,1736218039593,-1289.64,0.00019178,2]
[347929051,1736218039616,-500.0,0.00019178,2]
[347929052,1736218039641,-4545.72,0.00019178,2]
[347929053,1736218039663,-500.0,0.00019178,2]
[347929054,1736218039686,-500.0,0.00019178,2]
[347929055,1736218039709,-841.74,0.00019178,2]
[347929056,1736218039731,-500.0,0.00019178,2]
[347929057,1736218039754,-500.0,0.00019178,2]
[347929058,1736218039779,-1703.16,0.00019178,2]
[347929059,1736218039801,-500.0,0.00019178,2]
[347929060,1736218039823,-500.0,0.00019178,2]
[347929061,1736218039845,-438.65858041,0.00019178,2]
[347929062,1736218039869,-857.88,0.00019178,2]
[347929063,1736218039895,-500.0,0.00019178,2]
[347929064,1736218039920,-22597.93,0.00019178,2]
[347929065,1736218039943,-500.0,0.00019178,2]
[347929066,1736218039965,-500.0,0.00019178,2]
[347929067,1736218039989,-500.0,0.00019178,2]
[347929068,1736218040014,-871.95,0.00019178,2]
[347929069,1736218040037,-500.0,0.00019178,2]
[347929070,1736218040059,-229.85699228,0.00019178,2]
[347929071,1736218040084,-1021.18,0.00019178,2]
[347929072,1736218040108,-2082.52,0.00019178,2]
[347929073,1736218040131,-1028.48,0.00019178,2]
[347929074,1736218040154,-500.0,0.00019178,2]
[347929075,1736218040177,-879.09,0.00019178,2]
[347929076,1736218040199,-887.45,0.00019178,2]
[347929077,1736218040220,-504.52993651,0.00019178,2]
[347929078,1736218040244,-511.66791262,0.00019178,2]
[347929079,1736218040266,-504.16016742,0.00019178,2]
[347929080,1736218040289,-500.0,0.00019178,2]
[347929081,1736218040315,-500.0,0.00019178,2]
[347929082,1736218040338,-578.67586988,0.00019178,2]
[347929083,1736218040362,-262.20493357,0.00019178,2]
[347929084,1736218040383,-500.0,0.00019178,2]
[347929085,1736218040404,-502.81766811,0.00019178,2]
[347929086,1736218040427,-500.0,0.00019178,2]
[347929087,1736218040452,-502.35284751,0.00019178,2]
[347929088,1736218040475,-1000.77,0.00019178,2]
[347929089,1736218040498,-500.0,0.00019178,2]
[347929090,1736218040662,-515.52225991,0.00019178,2]
[347929091,1736218040687,-500.0,0.00019178,2]
[347929092,1736218040711,-244.31438405,0.00019178,2]
[347929093,1736218078664,177.03944,0.00013973,2]
[347929153,1736218232874,-300.0,0.00019177,2]
[347929155,1736218232884,-255.68561595,0.00019178,2]
[347929157,1736218232893,-503.65599259,0.00019178,2]
[347929159,1736218232902,-633.31,0.00019178,2]
[347929161,1736218232912,-935.24948886,0.00019178,2]
[347929163,1736218232925,-1969.17051114,0.00019178,2]
[347929165,1736218232935,-728.2,0.00019178,2]
[347929167,1736218232944,-500.0,0.00019178,2]
[347929169,1736218232953,-505.94994815,0.00019178,2]
[347929171,1736218232963,-828.09,0.00019178,2]
[347929173,1736218232972,-2916.11,0.00019178,2]
[347929175,1736218232981,-500.0,0.00019178,2]
[347929177,1736218232991,-500.0,0.00019178,2]
[347929179,1736218233000,-553.58,0.00019178,2]
[347929181,1736218233009,-500.0,0.00019178,2]
[347929183,1736218233018,-500.0,0.00019178,2]
[347929185,1736218233027,-787.87,0.00019178,2]
[347929187,1736218233037,-1735.53,0.00019178,2]
[347929189,1736218233046,-852.64,0.00019178,2]
[347929191,1736218233056,-500.0,0.00019178,2]
[347929193,1736218233066,-1036.47,0.00019178,2]
[347929196,1736218233075,-500.0,0.00019178,2]
[347929198,1736218233085,-500.0,0.00019178,2]
[347929200,1736218233095,-826.31,0.00019178,2]
[347929201,1736218233103,-500.0,0.00019178,2]
[347929203,1736218233113,-1291.98,0.00019178,2]
[347929205,1736218233123,-765.22,0.00019178,2]
[347929208,1736218233133,-4474.06607191,0.00019178,2]
[347929210,1736218233144,-1055.37,0.00019178,2]
[347929512,1736218238654,-439.7833682,0.00019178,2]
[347929514,1736218238665,-15687.13055989,0.00019178,2]
[347929516,1736218238677,-500.0,0.00019178,2]
[347929518,1736218238687,-1632.19,0.00019178,2]
[347929520,1736218238697,-616.49,0.00019178,2]
[347929522,1736218238706,-1995.75,0.00019178,2]
[347929524,1736218238716,-500.0,0.00019178,2]
[347929526,1736218238725,-500.0,0.00019178,2]
[347929528,1736218238735,-500.0,0.00019178,2]
[347929530,1736218238744,-850.47,0.00019178,2]
[347929532,1736218238754,-835.62,0.00019178,2]
[347929534,1736218238763,-500.0,0.00019178,2]
[347929536,1736218238773,-500.0,0.00019178,2]
[347929538,1736218238782,-500.0,0.00019178,2]
[347929540,1736218238791,-978.63,0.00019178,2]
[347929542,1736218238800,-500.0,0.00019178,2]
[347929544,1736218238810,-500.0,0.00019178,2]
[347929546,1736218238819,-299.03414105,0.00019178,2]
[347929547,1736218238828,-985.63,0.00019178,2]
[347929549,1736218238838,-229.1780481,0.00019178,2]
[347929551,1736218238847,-842.46,0.00019178,2]
[347929553,1736218238856,-227.45372013,0.00019178,2]
[347929555,1736218238865,-500.0,0.00019178,2]
[347929557,1736218238875,-500.0,0.00019178,2]
[347929560,1736218238885,-500.0,0.00019178,2]
[347929562,1736218238894,-6337.04,0.00019178,2]
[347929563,1736218238903,-500.0,0.00019178,2]
[347929565,1736218238912,-2783.41,0.00019178,2]
[347929566,1736218238921,-714.85,0.00019178,2]
[347929568,1736218238931,-167.9834416,0.00019178,2]
[347929570,1736218238940,-153.87,0.00019178,2]
[347929572,1736218238949,-309.7010481,0.000192,2]
[347929573,1736218238959,-432.4415254,0.000192,2]
[347929574,1736218238968,-154.5838917,0.000192,2]
[347929575,1736218238978,-466.9336186,0.00019255,2]
[347929576,1736218238987,-151.0,0.000193,2]
[347929577,1736218238996,-352.9591083,0.000193,2]
[347929578,1736218239006,-352.9591083,0.000193,2]
[347929579,1736218239015,-275.0,0.0001935,2]
[347929580,1736218239024,-1094.67566738,0.00019351,2]
[347929581,1736218239034,-151.0,0.000194,2]
[347929582,1736218239043,-151.0,0.000194,2]
[347929583,1736218239052,-151.0,0.000194,2]
[347929584,1736218239061,-352.9591083,0.000194,2]
[347929585,1736218239070,-352.9591083,0.000194,2]
[347929586,1736218239079,-652.57858185,0.000194,2]
[347929587,1736218239089,-619.0,0.000194,2]
[347929588,1736218239098,-489.20488206,0.00019406,2]
[347929589,1736218239107,-500.0,0.00019406,2]
[347929590,1736218239116,-500.0,0.00019406,2]
[347929591,1736218239125,-240.99149122,0.00019406,2]
[347929592,1736218239134,-153.915,0.00019407,2]
[347929593,1736218239143,-2081.0,0.00019407,2]
[347929594,1736218239152,-535.0,0.00019407,2]
[347929595,1736218239161,-2319.0,0.00019407,2]
[347929596,1736218239170,-152.77,0.00019407,2]
[347929597,1736218239180,-605.378646,0.00019417,2]
[347929598,1736218239189,-605.378646,0.00019417,2]
[347929599,1736218239198,-151.0,0.00019417,2]
[347929600,1736218239207,-151.0,0.00019417,2]
[347929601,1736218239217,-313.028497,0.00019417,2]
[347929602,1736218239227,-313.028497,0.00019417,2]
[347929603,1736218239236,-151.0,0.00019417,2]
[347929604,1736218239245,-151.0,0.00019417,2]
[347929605,1736218239255,-152.0,0.00019434,2]
[347929606,1736218239264,-587.13809779,0.00019449,2]
[347929607,1736218239273,-289.89012128,0.0001945,2]
[347929608,1736218239282,-9254.2909003,0.00019451,2]
[347929609,1736218239292,-112739.70683641,0.00019451,2]
[347929610,1736218239301,-2340427.0209507,0.00019451,4]
[347929611,1736218239311,-151.0,0.00019451,2]
[347929612,1736218239320,-151.0,0.00019451,2]
[347929613,1736218239329,-596.430962,0.00019451,2]
[347929614,1736218239341,-596.430962,0.00019451,2]
[347929615,1736218239350,-156.869956,0.00019451,2]
[347929616,1736218239360,-169.833979,0.00019451,2]
[347929617,1736218239369,-169.833979,0.00019451,2]
[347929618,1736218239382,-229.308313,0.00019451,2]
[347929619,1736218239393,-1178.847734,0.00019451,2]
[347929620,1736218239403,-1178.847734,0.00019451,2]
[347929621,1736218239413,-1178.847734,0.00019451,2]
[347929622,1736218239424,-1178.847734,0.00019451,2]
[347929623,1736218239433,-151.251795,0.00019451,2]
[347929624,1736218239443,-151.0,0.00019451,2]
[347929625,1736218239453,-219.404072,0.00019451,2]
[347929626,1736218239465,-165.633418,0.00019451,2]
[347929627,1736218239474,-165.633418,0.00019451,2]
[347929628,1736218239483,-257.911131,0.00019451,2]
[347929629,1736218239493,-257.911131,0.00019451,2]
[347929630,1736218239502,-257.911131,0.00019451,2]
[347929631,1736218239511,-257.911131,0.00019451,2]
[347929632,1736218239521,-346.640044,0.00019451,2]
[347929633,1736218239531,-346.640044,0.00019451,2]
[347929634,1736218239540,-151.0,0.00019451,2]
[347929635,1736218239553,-151.0,0.00019451,2]
[347929636,1736218239565,-605.378646,0.00019451,2]
[347929637,1736218239577,-605.378646,0.00019451,2]
[347929638,1736218239589,-151.0,0.00019451,2]
[347929639,1736218239600,-151.0,0.00019451,2]
[347929640,1736218239610,-1128.534128,0.00019451,2]
[347929641,1736218239621,-1128.534128,0.00019451,2]
[347929642,1736218239633,-178.094633,0.00019451,2]
[347929643,1736218239644,-178.094633,0.00019451,2]
[347929644,1736218239656,-178.094633,0.00019451,2]
[347929645,1736218239668,-178.094633,0.00019451,2]
[347929646,1736218239679,-313.028497,0.00019451,2]
[347929647,1736218239690,-313.028497,0.00019451,2]
[347929648,1736218239702,-545.058135,0.00019451,2]
[347929649,1736218239717,-545.058135,0.00019451,2]
[347929650,1736218239729,-151.0,0.00019451,2]
[347929651,1736218239741,-300.569546,0.00019451,2]
[347929652,1736218239753,-500.64140926,0.00019451,2]
[347929653,1736218239765,-500.0,0.00019451,2]
[347929654,1736218239777,-151.0,0.00019452,2]
[347929655,1736218239788,-151.0,0.00019452,2]
[347929656,1736218239799,-151.0,0.00019452,2]
[347929657,1736218239811,-151.0,0.00019452,2]
[347929658,1736218239822,-190.965933,0.00019452,2]
[347929659,1736218239834,-190.965933,0.00019452,2]
[347929660,1736218239847,-177.60691,0.00019452,2]
[347929661,1736218239859,-177.60691,0.00019452,2]
[347929662,1736218239870,-151.0,0.00019452,2]
[347929663,1736218239882,-241.995689,0.00019452,2]
[347929664,1736218239893,-241.995689,0.00019452,2]
[347929665,1736218239903,-208.037966,0.00019452,2]
[347929666,1736218239913,-208.037966,0.00019452,2]
[347929667,1736218239924,-151.0,0.00019452,2]
[347929668,1736218239935,-151.0,0.00019452,2]
[347929669,1736218239946,-151.0,0.00019452,2]
[347929670,1736218239958,-151.0,0.00019452,2]
[347929671,1736218239969,-168.234876,0.00019452,2]
[347929672,1736218239980,-354.492904,0.00019452,2]
[347929673,1736218239992,-354.492904,0.00019452,2]
[347929674,1736218240004,-596.430962,0.00019452,2]
[347929675,1736218240016,-596.430962,0.00019452,2]
[347929676,1736218240029,-151.0,0.00019452,2]
[347929677,1736218240041,-151.0,0.00019452,2]
[347929678,1736218240053,-596.430962,0.00019452,2]
[347929679,1736218240065,-596.430962,0.00019452,2]
[347929681,1736218240075,-169.833979,0.00019452,2]
[347929683,1736218240085,-169.833979,0.00019452,2]
[347929684,1736218240096,-169.833979,0.00019452,2]
[347929685,1736218240106,-169.833979,0.00019452,2]
[347929686,1736218240116,-229.308313,0.00019452,2]
[347929687,1736218240128,-229.308313,0.00019452,2]
[347929688,1736218240139,-1178.847734,0.00019452,2]
[347929689,1736218240151,-1178.847734,0.00019452,2]
[347929690,1736218240163,-1178.847734,0.00019452,2]
[347929691,1736218240174,-1178.847734,0.00019452,2]
[347929692,1736218240184,-165.633418,0.00019452,2]
[347929693,1736218240194,-165.633418,0.00019452,2]
[347929694,1736218240204,-165.633418,0.00019452,2]
[347929695,1736218240214,-165.633418,0.00019452,2]
[347929696,1736218240225,-257.911131,0.00019452,2]
[347929697,1736218240237,-257.911131,0.00019452,2]
[347929698,1736218240247,-257.911131,0.00019452,2]
[347929699,1736218240257,-257.911131,0.00019452,2]
[347929700,1736218240267,-346.640044,0.00019452,2]
[347929701,1736218240276,-346.640044,0.00019452,2]
[347929702,1736218240286,-346.640044,0.00019452,2]
[347929703,1736218240297,-346.640044,0.00019452,2]
[347929704,1736218240308,-151.0,0.00019452,2]
[347929705,1736218240318,-151.0,0.00019452,2]
[347929706,1736218240329,-605.378646,0.00019452,2]
[347929707,1736218240343,-605.378646,0.00019452,2]
[347929708,1736218240353,-605.378646,0.00019452,2]
[347929709,1736218240364,-605.378646,0.00019452,2]
[347929710,1736218240377,-151.0,0.00019452,2]
[347929711,1736218240389,-151.0,0.00019452,2]
[347929712,1736218240400,-151.0,0.00019452,2]
[347929713,1736218240411,-151.0,0.00019452,2]
[347929714,1736218240422,-1128.534128,0.00019452,2]
[347929715,1736218240432,-1128.534128,0.00019452,2]
[347929716,1736218240443,-287.015485,0.00019452,2]
[347929717,1736218240454,-1128.534128,0.00019452,2]
[347929718,1736218240465,-1128.534128,0.00019452,2]
[347929719,1736218240475,-151.0,0.00019452,2]
[347929722,1736218240486,-178.094633,0.00019452,2]
[347929724,1736218240497,-178.094633,0.00019452,2]
[347929726,1736218240508,-178.094633,0.00019452,2]
[347929728,1736218240518,-178.094633,0.00019452,2]
[347929730,1736218240529,-500.0,0.00019452,3]
[347929732,1736218240540,-500.0,0.00019452,3]
[347929734,1736218240550,-313.028497,0.00019452,2]
[347929736,1736218240561,-313.028497,0.00019452,2]
[347929739,1736218240572,-313.028497,0.00019452,2]
[347929741,1736218240583,-313.028497,0.00019452,2]
[347929743,1736218240593,-545.058135,0.00019452,2]
[347929745,1736218240604,-545.058135,0.00019452,2]
[347929747,1736218240614,-545.058135,0.00019452,2]
[347929749,1736218240625,-545.058135,0.00019452,2]
[347929751,1736218240635,-2093.44932,0.00019452,2]
[347929753,1736218240646,-2093.44932,0.00019452,2]
[347929755,1736218240658,-150.11,0.00019452,2]
[347929757,1736218240668,-151.0,0.00019452,2]
[347929759,1736218240680,-151.0,0.00019452,2]
[347929762,1736218240691,-251.412382,0.00019452,2]
[347929764,1736218240702,-251.412382,0.00019452,2]
[347929766,1736218240716,-1207.474637,0.00019452,2]
[347929768,1736218240726,-1207.474637,0.00019452,2]
[347929770,1736218240737,-500.0,0.00019452,3]
[347929772,1736218240747,-151.0,0.00019452,2]
[347929774,1736218240757,-151.0,0.00019452,2]
[347929776,1736218240768,-151.0,0.00019452,2]
[347929778,1736218240779,-151.0,0.00019452,2]
[347929781,1736218240790,-500.0,0.00019452,3]
[347929783,1736218240802,-500.0,0.00019452,3]
[347929785,1736218240812,-546.328271,0.00019452,2]
[347929787,1736218240823,-546.328271,0.00019452,2]
[347929789,1736218240833,-500.0,0.00019452,3]
[347929791,1736218240844,-546.328271,0.00019452,2]
[347929793,1736218240854,-546.328271,0.00019452,2]
[347929795,1736218240865,-994.87,0.00019452,3]
[347929797,1736218240876,-151.0,0.00019452,2]
[347929799,1736218240887,-151.0,0.00019452,2]
[347929802,1736218240898,-151.0,0.00019452,2]
[347929804,1736218240908,-212.053301,0.00019452,2]
[347929806,1736218240919,-603.45,0.00019452,3]
[347929808,1736218240931,-500.0,0.00019452,3]
[347929810,1736218240942,-500.0,0.00019452,3]
[347929812,1736218240953,-500.0,0.00019452,3]
[347929814,1736218240964,-500.0,0.00019452,3]
[347929816,1736218240974,-636.16,0.00019452,3]
[347929819,1736218240985,-500.0,0.00019452,3]
[347929821,1736218240995,-980.5,0.00019452,3]
[347929823,1736218241006,-500.0,0.00019452,3]
[347929825,1736218241016,-874.84,0.00019452,3]
[347929827,1736218241027,-167.11514807,0.00019452,3]
[347929829,1736218241038,-526.25,0.00019452,3]
[347929831,1736218241048,-2918.47,0.00019452,3]
[347929833,1736218241059,-853.0,0.00019452,3]
[347929836,1736218241070,-500.0,0.00019452,3]
[347929838,1736218241080,-500.0,0.00019452,3]
[347929840,1736218241090,-627.59,0.00019452,3]
[347929842,1736218241099,-153.054741,0.00019452,2]
[347929844,1736218241109,-153.054741,0.00019452,2]
[347929846,1736218241118,-153.054741,0.00019452,2]
[347929848,1736218241127,-153.054741,0.00019452,2]
[347929850,1736218241137,-506.59013872,0.00019452,3]
[347929852,1736218241146,-507.90601873,0.00019452,3]
[347929854,1736218241155,-500.0,0.00019452,3]
[347929856,1736218241165,-500.0,0.00019452,3]
[347929858,1736218241174,-537.38,0.00019452,3]
[347929860,1736218241184,-671.38,0.00019452,3]
[347929862,1736218241193,-500.0,0.00019452,3]
[347929864,1736218241202,-990.955405,0.00019452,2]
[347929866,1736218241211,-990.955405,0.00019452,2]
[347929888,1736218241409,-990.955405,0.00019452,2]
[347929891,1736218241430,-990.955405,0.00019452,2]
[347929893,1736218241441,-507.88882926,0.00019452,3]
[347929895,1736218241450,-394.14209586,0.00019452,3]
[347929897,1736218241459,-2092.96,0.00019452,3]
[347929899,1736218241469,-4545.72,0.00019452,3]
[347929901,1736218241478,-500.0,0.00019452,3]
[347929903,1736218241488,-841.74,0.00019452,3]
[347929905,1736218241497,-500.0,0.00019452,3]
[347929907,1736218241507,-443.40789451,0.00019452,3]
[347929909,1736218241515,-151.0,0.00019452,2]
[347929911,1736218241525,-151.0,0.00019452,2]
[347929913,1736218241534,-500.0,0.00019452,3]
[347929915,1736218241544,-500.0,0.00019452,3]
[347929917,1736218241553,-412.958138,0.00019452,2]
[347929919,1736218241562,-412.958138,0.00019452,2]
[347929921,1736218241571,-412.958138,0.00019452,2]
[347929923,1736218241580,-412.958138,0.00019452,2]
[347929925,1736218241590,-900.674693,0.00019452,2]
[347929927,1736218241599,-900.674693,0.00019452,2]
[347929929,1736218241608,-500.0,0.00019452,3]
[347929931,1736218241618,-900.674693,0.00019452,2]
[347929933,1736218241627,-900.674693,0.00019452,2]
[347929935,1736218241636,-500.0,0.00019452,3]
[347929937,1736218241645,-390.964998,0.00019452,2]
[347929939,1736218241654,-390.964998,0.00019452,2]
[347929941,1736218241663,-390.964998,0.00019452,2]
[347929943,1736218241673,-390.964998,0.00019452,2]
[347929945,1736218241684,-500.0,0.00019452,3]
[347929947,1736218241693,-151.0,0.00019452,2]
[347929949,1736218241702,-151.0,0.00019452,2]
[347929950,1736218241711,-500.0,0.00019452,3]
[347929952,1736218241720,-500.0,0.00019452,3]
[347929955,1736218241730,-151.0,0.00019452,2]
[347929957,1736218241739,-151.0,0.00019452,2]
[347929958,1736218241748,-500.0,0.00019452,3]
[347929961,1736218241757,-151.0,0.00019452,2]
[347929962,1736218241766,-151.0,0.00019452,2]
[347929964,1736218241775,-500.0,0.00019452,3]
[347929966,1736218241785,-500.0,0.00019452,2]
[347929968,1736218241795,-163.39849403,0.00019452,2]
[347929971,1736218241804,-203.65678288,0.00019452,2]
[347929973,1736218241813,-159.58438768,0.00019452,2]
[347929975,1736218241822,-500.0,0.00019452,2]
[347929976,1736218241831,-165.87621202,0.00019452,2]
[347929979,1736218241841,-500.0,0.00019452,3]
[347929980,1736218241850,-150.11,0.00019452,2]
[347929983,1736218241859,-150.11,0.00019452,2]
[347929984,1736218241868,-151.16768175,0.00019452,2]
[347929987,1736218241877,-150.11,0.00019452,2]
[347929989,1736218241887,-633.31,0.00019452,2]
[347929991,1736218241896,-728.2,0.00019452,3]
[347929992,1736218241905,-500.0,0.00019452,3]
[347929994,1736218241915,-828.09,0.00019452,3]
[347929997,1736218241925,-151.0,0.00019452,2]
[347929999,1736218241934,-151.0,0.00019452,2]
[347930001,1736218241944,-2916.11,0.00019452,3]
[347930002,1736218241953,-500.0,0.00019452,3]
[347930004,1736218241962,-157.975316,0.00019452,2]
[347930006,1736218241971,-500.0,0.00019452,3]
[347930009,1736218241980,-553.58,0.00019452,3]
[347930011,1736218241990,-500.0,0.00019452,3]
[347930013,1736218241999,-500.0,0.00019452,3]
[347930015,1736218242008,-787.87,0.00019452,3]
[347930017,1736218242018,-1735.53,0.00019452,3]
[347930019,1736218242027,-852.64,0.00019452,3]
[347930020,1736218242036,-500.0,0.00019452,3]
[347930022,1736218242045,-1036.47,0.00019452,3]
[347930025,1736218242055,-500.0,0.00019452,3]
[347930027,1736218242064,-500.0,0.00019452,3]
[347930028,1736218242073,-826.31,0.00019452,3]
[347930030,1736218242083,-500.0,0.00019452,3]
[347930032,1736218242092,-567.84781,0.00019452,2]
[347930035,1736218242101,-567.84781,0.00019452,2]
[347930036,1736218242112,-1291.98,0.00019452,3]
[347930039,1736218242122,-765.22,0.00019452,3]
[347930040,1736218242131,-21656.35,0.00019452,3]
[347930043,1736218242141,-567.84781,0.00019452,2]
[347930045,1736218242150,-567.84781,0.00019452,2]
[347930047,1736218242160,-500.0,0.00019452,3]
[347930049,1736218242169,-1632.19,0.00019452,3]
[347930051,1736218242180,-616.49,0.00019452,3]
[347930053,1736218242189,-1995.75,0.00019452,3]
[347930055,1736218242198,-500.0,0.00019452,3]
[347930057,1736218242207,-500.0,0.00019452,3]
[347930059,1736218242218,-500.0,0.00019452,3]
[347930061,1736218242227,-850.47,0.00019452,3]
[347930063,1736218242236,-1496.67572,0.00019452,2]
[347930065,1736218242245,-151.0,0.00019452,2]
[347930067,1736218242254,-1496.67572,0.00019452,2]
[347930069,1736218242264,-835.62,0.00019452,3]
[347930071,1736218242273,-151.0,0.00019452,2]
[347930073,1736218242282,-500.0,0.00019452,3]
[347930075,1736218242292,-500.0,0.00019452,3]
[347930077,1736218242301,-500.0,0.00019452,2]
[347930079,1736218242310,-1496.67572,0.00019452,2]
[347930081,1736218242319,-1496.67572,0.00019452,2]
[347930083,1736218242328,-500.0,0.00019452,2]
[347930085,1736218242342,-150.11,0.00019452,2]
[347930087,1736218242351,-500.0,0.00019452,2]
[347930089,1736218242360,-185.48535929,0.00019452,2]
[347930091,1736218242369,-150.11,0.00019452,2]
[347930093,1736218242379,-500.0,0.00019452,3]
[347930096,1736218242391,-978.63,0.00019452,3]
[347930098,1736218242401,-500.0,0.00019452,3]
[347930100,1736218242411,-500.0,0.00019452,2]
[347930102,1736218242420,-500.0,0.00019452,3]
[347930104,1736218242432,-500.0,0.00019452,2]
[347930106,1736218242441,-150.11,0.00019452,2]
[347930108,1736218242450,-985.63,0.00019452,3]
[347930110,1736218242459,-150.11,0.00019452,2]
[347930112,1736218242469,-500.0,0.00019452,2]
[347930114,1736218242478,-842.46,0.00019452,3]
[347930116,1736218242487,-500.0,0.00019452,3]
[347930118,1736218242496,-500.0,0.00019452,2]
[347930120,1736218242506,-500.0,0.00019452,2]
[347930122,1736218242515,-150.11,0.00019452,2]
[347930124,1736218242525,-500.0,0.00019452,3]
[347930126,1736218242534,-500.0,0.00019452,3]
[347930128,1736218242543,-150.11,0.00019452,2]
[347930130,1736218242553,-6337.04,0.00019452,3]
[347930132,1736218242563,-509.73567633,0.00019452,3]
[347930134,1736218242572,-151.0,0.00019455,2]
[347930136,1736218242581,-153.993812,0.00019455,2]
[347930138,1736218242590,-153.993812,0.00019455,2]
[347930140,1736218242599,-605.378646,0.00019464,2]
[347930142,1736218242609,-605.378646,0.00019464,2]
[347930143,1736218242618,-151.0,0.00019464,2]
[347930144,1736218242629,-151.0,0.00019464,2]
[347930145,1736218242639,-313.028497,0.00019464,2]
[347930146,1736218242648,-313.028497,0.00019464,2]
[347930147,1736218242657,-151.0,0.00019464,2]
[347930148,1736218242667,-8210.39602295,0.00019464,2]
[347930149,1736218242679,-500.0,0.00019473,2]
[347930150,1736218242689,-500.66829099,0.00019473,2]
[347930151,1736218242698,-151.05102672,0.00019473,2]
[347930152,1736218242707,-151.0,0.00019499,2]
[347930153,1736218242716,-178.094633,0.00019499,2]
[347930154,1736218242726,-178.094633,0.00019499,2]
[347930155,1736218242735,-1368.77,0.000195,2]
[347930156,1736218242744,-3808.53,0.000195,2]
[347930157,1736218242754,-11876.34,0.000195,2]
[347930158,1736218242763,-11958.98,0.000195,2]
[347930159,1736218242772,-151.0,0.000195,2]
[347930160,1736218242781,-354.492904,0.000195,2]
[347930161,1736218242790,-354.492904,0.000195,2]
[347930162,1736218242800,-596.430962,0.000195,2]
[347930164,1736218242809,-596.430962,0.000195,2]
[347930166,1736218242818,-169.833979,0.000195,2]
[347930168,1736218242828,-169.833979,0.000195,2]
[347930169,1736218242837,-229.308313,0.000195,2]
[347930172,1736218242846,-165.633418,0.000195,2]
[347930173,1736218242856,-165.633418,0.000195,2]
[347930175,1736218242865,-257.911131,0.000195,2]